Cogmind - Beta 14 @@@ ROGUE MODE // 2025.03.11 @ 12:55:28 Player: Caluan Result: Destroyed by G-47 Trooper with Particle Gun Performance ------------- Evolutions (0) 0 Regions Visited (2) 400 Robots Destroyed (33) 165 Value Destroyed (677) 677 Prototype IDs (2) 40 Alien Tech Used (0) 0 Bonus (0) 0 TOTAL SCORE: 1282 Bonus ------- None Cogmind --------- Core Integrity 0/250 Matter 259/300 Energy 248/250 System Corruption 0% Temperature Cool (18) Movement Treading (320) Ox2 Location -10/Mines Parts ------- > --- POWER (1) -------- Ion Engine > --- PROPULSION (2) --- Light Treads Light Treads > --- UTILITY (2) ------ Huge Storage Unit Seismic Detector > --- WEAPON (2) ------- Light Cannon > --- INVENTORY (25) --- Ion Engine Ion Engine Light Ion Engine Large Storage Unit Sensor Array Improved Terrain Scanner Datajack Peak State ------------ > --- POWER ------------ Ion Engine > --- PROPULSION ------- Light Treads Light Treads > --- UTILITY ---------- Huge Storage Unit Seismic Detector > --- WEAPON ----------- Assault Rifle Light Cannon > --- INVENTORY -------- Light Ion Engine Light Treads Light Treads Large Storage Unit Sensor Array Improved Terrain Scanner Grenade Launcher Datajack [Rating: 8] Favorites ----------- Power Ion Engine Engine Ion Engine Propulsion Light Treads Treads Light Treads Utility Seismic Detector Device Seismic Detector Storage Huge Storage Unit Weapon Light Cannon Energy Gun Medium Laser Ballistic Gun Assault Rifle Ballistic Cannon Light Cannon Launcher Grenade Launcher Build | -11 -10 -10 ------- Run | Yrd Mat Min Slots Evolved . | . . . Power . | . . . Propulsion . | . . . Utility . | . . . Weapon . | . . . Parts Attached 16 | 7 8 1 Power 2 | 1 . 1 Engine 2 | 1 . 1 Core . | . . . Reactor . | . . . Propulsion 4 | 2 2 . Treads 4 | 2 2 . Leg . | . . . Wheel . | . . . Hover . | . . . Flight . | . . . Utility 4 | 2 2 . Device 1 | 1 . . Storage 3 | 1 2 . Processor . | . . . Hackware . | . . . Protection . | . . . Artifact . | . . . Weapon 6 | 2 4 . Energy Gun 1 | 1 . . Energy Cannon . | . . . Ballistic Gun 2 | 1 1 . Ballistic Cannon 2 | . 2 . Launcher 1 | . 1 . Special Weapon . | . . . Impact Weapon . | . . . Slashing Weapon . | . . . Piercing Weapon . | . . . Special Melee Weapon . | . . . Unidentified Prototypes . | . . . Parts Lost 5 | . 3 2 Power 1 | . . 1 Propulsion 2 | . 2 . Utility . | . . . Weapon 2 | . 1 1 Highest Loss Streak 3 | . 3 1 To Critical Strikes . | . . . Average Slot Usage (%) 90 | . 90 90 Engine 12 | . 14 5 Treads 27 | . 27 28 Device 14 | . 14 14 Storage 14 | . 14 14 Ballistic Gun 3 | . 4 . Ballistic Cannon 11 | . 11 14 Launcher 5 | . 2 13 Peak Build Rating 8 | 7 8 8 Average Rating 6 | 4 6 7 On Entrance 5 | . 7 8 Naked Turns . | . . . Heaviest Build 92 | 15 92 92 Greatest Support 40 | 40 40 40 Greatest Overweight (x) 2 | . 2 2 Average Overweight (x) 1 | . 1 2 Largest Inventory Capacity 25 | 8 25 25 Average Capacity 22 | 7 22 25 Most Carried 8 | 5 8 8 Average Carried 6 | 3 6 7 Final Capacity 25 | 8 25 25 Final Carried 8 | 4 8 7 Class Distribution -------------------- 100% | Mutant Dominant Class ---------------- Mutant | -10/Materials Mutant | -10/Mines Resources | -11 -10 -10 ----------- Run | Yrd Mat Min Matter Collected 760 | 285 422 53 Remotely . | . . . Salvage Created 748 | 136 589 23 Parts 59 | 6 49 4 Haulers Intercepted 1 | . 1 . Recyclers Shooed 2 | 1 1 . Parts Field Recycled . | . . . Retrieved Matter . | . . . Parts Self-Destructed . | . . . Prevented . | . . . Kills | -11 -10 -10 ------- Run | Yrd Mat Min Combat Hostiles Destroyed 23 | . 20 3 Guns 7 | . 7 . Cannons 10 | . 10 . AOE 6 | . 3 3 Classes Destroyed 9 | 2 7 . Worker 2 | . 1 1 Tunneler 2 | 2 . . Hauler 1 | . 1 . Recycler 1 | 1 . . Mechanic 1 | . 1 . Operator 1 | . 1 . Watcher 2 | . 2 . Swarmer 9 | . 6 3 Grunt 14 | . 14 . Best Kill Streak 4 | 3 4 4 Combat Bots Only 3 | . 3 3 Max Kills in Single Turn 2 | 1 2 2 Gunslinging . | . . . Exploded 2 | . 2 2 Melee . | . . . Uniques/NPCs Destroyed . | . . . Combat | -11 -10 -10 -------- Run | Yrd Mat Min Hostile Shots Fired 145 | . 118 27 Missed 42 | . 33 9 Damage Taken 1286 | . 1069 217 Core 262 | . 213 49 Absorbed by Shields . | . . . Regen/Repaired (Parts) 78 | . 78 . Core Remaining (%) 100 | 100 . . Volleys Fired 86 | 5 67 14 Largest 2 | 2 2 1 Hottest 70 | 70 55 35 Shots Fired 129 | 10 105 14 Gun 61 | 10 51 . Cannon 60 | . 51 9 Launcher 8 | . 3 5 Special . | . . . Kinetic 116 | 5 102 9 Thermal 5 | 5 . . Explosive 8 | . 3 5 Electromagnetic . | . . . Robot Hit Streak 10 | 4 10 7 Robot Miss Streak 4 | 1 4 2 Penetration Max . | . . . Secondary Targets 1 | . 1 . Max Gunslinging Chain 1 | . 1 . Shots Hit Robots 84 | 7 70 7 Core Hits 47 | 4 38 5 Critical Kills . | . . . Critical Parts Destroyed . | . . . Critical Strikes 4 | . 4 . Blast 4 | . 4 . Melee Attacks . | . . . Impact . | . . . Slashing . | . . . Piercing . | . . . Sneak Attacks . | . . . Combat Hostiles . | . . . Follow-up Attacks . | . . . Damage Inflicted 1860 | 91 1327 442 Guns 508 | 91 417 . Cannons 776 | . 657 119 Explosions 576 | . 253 323 Melee . | . . . Ramming . | . . . Kinetic 1221 | 28 1074 119 Thermal 63 | 63 . . Explosive 576 | . 253 323 Electromagnetic . | . . . Impact . | . . . Slashing . | . . . Piercing . | . . . Highest Corruption . | . . . Average Corruption . | . . . Corruption Purged . | . . . Corruption Blocked . | . . . Overload Shots . | . . . Overflow Damage 14 | . 9 5 Projectiles 9 | . 9 . Explosions 5 | . . 5 Melee . | . . . Knockbacks 14 | . 14 . Impact . | . . . Kinetic 13 | . 13 . Secondary 1 | . 1 . Self-Inflicted Damage 98 | . 73 25 Shots 4 | . 3 1 Rammed . | . . . Targets Rammed . | . . . Kicked . | . . . Crushed . | . . . Highest Temperature 164 | 27 164 12 Average Temperature 72 | 11 89 7 Received Heat Transfer 555 | . 471 84 Siege Activations . | . . . Robots Corrupted . | . . . Combat Hostiles . | . . . Parts Fried . | . . . Impact Corruptions . | . . . Robots Melted . | . . . Combat Hostiles . | . . . Parts Melted . | . . . Heat Transferred 185 | 185 . . Parts Sabotaged . | . . . Parts Stolen . | . . . Parts Stripped . | . . . Power Chain Reactions . | . . . Alert | -11 -10 -10 ------- Run | Yrd Mat Min Peak Influence 200 | 15 200 100 Initial 13 | . 9 13 Average 56 | 4 67 27 Maximum Alert Level 1 | . 1 . Low Security (%) 98 | 100 98 100 Level 1 1 | . 1 . Level 2 . | . . . Level 3 . | . . . Level 4 . | . . . Level 5 . | . . . High Security . | . . . Max Security . | . . . Squads Dispatched 4 | . 4 . Investigation 2 | . 2 . Extermination . | . . . Reinforcement 2 | . 2 . Assault . | . . . Garrison . | . . . Intercept . | . . . Searches Triggered . | . . . Construction Impeded . | . . . Haulers Reinforced . | . . . Active Scanning Responses . | . . . Cargo Convoy Interrupts . | . . . Stealth | -11 -10 -10 --------- Run | Yrd Mat Min Distress Signals 1 | . 1 . Communications Jammed . | . . . Distress Signals . | . . . Times Spotted 29 | . 24 5 Peak Tracking Total 4 | . 4 3 Tactical Retreats 1 | . 1 . Traps | -11 -10 -10 ------- Run | Yrd Mat Min Traps Triggered . | . . . Indirectly . | . . . Trap Hack Attempts . | . . . Triggered . | . . . Disarmed . | . . . Reprogrammed . | . . . Reused . | . . . Traps Extracted . | . . . Installed . | . . . Triggered . | . . . Machines | -11 -10 -10 ---------- Run | Yrd Mat Min Machines Disabled . | . . . Max in Single Turn . | . . . Machines Repaired . | . . . Machines Dismantled . | . . . Machines Sabotaged . | . . . Overloaded Fab Kills . | . . . Hacking | -11 -10 -10 --------- Run | Yrd Mat Min Machines Accessed 8 | . 8 . Terminals 6 | . 6 . Fabricators . | . . . Repair Stations 1 | . 1 . Recycling Units 1 | . 1 . Scanalyzers . | . . . Garrison Access . | . . . Total Hacks 20 | . 20 . Successful 8 | . 8 . Failed 12 | . 12 . Catastrophic 4 | . 4 . Database Lockouts . | . . . Manual 9 | . 9 . Terminals 17 | . 17 . Fabricators . | . . . Repair Stations 2 | . 2 . Recycling Units 1 | . 1 . Scanalyzers . | . . . Garrison Access . | . . . Terminal Hacks 3 | . 3 . Prototype ID Bank 1 | . 1 . Branch Access Points 1 | . 1 . Zone Layout 1 | . 1 . Fabricator Hacks . | . . . Repair Station Hacks 2 | . 2 . Scan Component 1 | . 1 . Repair 1 | . 1 . Recycling Unit Hacks 1 | . 1 . Process 1 | . 1 . Scanalyzer . | . . . Garrison Access Hacks . | . . . Unauthorized Hacks 2 | . 2 . Terminals 2 | . 2 . Botnet 2 | . 2 . Fabricators . | . . . Repair Stations . | . . . Recycling Units . | . . . Scanalyzers . | . . . Garrison Access . | . . . Data Cores Recovered . | . . . Used . | . . . Hacking Detections 8 | . 8 . Full Trace Events 3 | . 3 . Feedback Events . | . . . Feedback Blocked . | . . . Robot Schematics Acquired . | . . . Robots Built . | . . . Authchips . | . . . Time . | . . . Total Robot Build Rating . | . . . Part Schematics Acquired . | . . . Parts Built . | . . . Authchips . | . . . Time . | . . . Total Part Build Rating . | . . . Parts Repaired 1 | . 1 . Time 26 | . 26 . Parts Recycled . | . . . Recycled Matter 23 | . 23 . Retrieved Matter . | . . . Retrieved Components . | . . . Parts Scanalyzed . | . . . Part Schematics Acquired . | . . . Parts Damaged . | . . . Bothacking | -11 -10 -10 ------------ Run | Yrd Mat Min Used RIF Installer . | . . . Robots Hacked . | . . . Non-combat . | . . . Combat . | . . . Robot Hacks Applied . | . . . Relay Couplers Released . | . . . Fabnet Peak Effective % . | . . . Robots Rewired . | . . . Allies Hacked . | . . . Hacks Repelled . | . . . Allies | -11 -10 -10 -------- Run | Yrd Mat Min Total Allies . | . . . Largest Group . | . . . Highest-Rated Group . | . . . Highest-Rated Ally . | . . . Total Orders . | . . . Ally Attacks . | . . . Total Damage . | . . . Kills . | . . . Allies Corrupted . | . . . Allies Melted . | . . . Intel | -11 -10 -10 ------- Run | Yrd Mat Min Robot Analysis Total . | . . . Derelict Logs Recovered 2 | . . 2 Drone Launches . | . . . Drone Recoveries . | . . . Exploration | -11 -10 -10 ------------- Run | Yrd Mat Min Turns Passed 3252 | 130 2447 675 Spaces Moved 993 | 75 717 201 Core 20 | 20 . . Treads 973 | 55 717 201 Legs . | . . . Wheels . | . . . Hover . | . . . Flight . | . . . Fastest Speed 50 | 50 160 320 Average Speed 274 | 130 276 320 Slowest Speed 320 | 160 320 320 Overloaded Moves . | . . . Propulsion Burnouts . | . . . Robots Hopped . | . . . Cave-ins Triggered . | . . . Exploration Rate (%) 46 | 6 79 54 Regions Visited 2 Branch Regions 1 Pre-discovered Areas 2 | . . 2 Known Exits Taken 1 | . 1 . Unknown Exits Taken 1 | 1 . . Scrap Searched 1 | . . 1 Spaces Dug . | . . . Terrain Destroyed 53 | . 22 31 Melee . | . . . Projectile . | . . . AOE 53 | . 22 31 Terrain Rammed . | . . . Walls Destroyed . | . . . Machines Disabled . | . . . Actions | -11 -10 -10 --------- Run | Yrd Mat Min Total 1398 | 97 1081 220 Wait 273 | . 269 4 Move 991 | 74 716 201 Hop . | . . . Pick Up 25 | 11 14 . Fast Attach 1 | . 1 . Attach 14 | 7 6 1 Detach 1 | . 1 . Swap 1 | . 1 . Drop 6 | . 6 . Fire 86 | 5 67 14 Melee . | . . . Ram . | . . . Kick . | . . . Crush . | . . . Escape Stasis . | . . . Rewire . | . . . Trap . | . . . Miscellaneous . | . . . Route ------- -11/Scrapyard -10/Materials (discovered 4 exits: [*Mat x2] / *Min x2) -10/Mines (discovered 1 exit: [*Mat]) History --------- Turn | Location | Event 7 | -11/Scrapyard | Discovered new exit (range 15) 131 | -11/Scrapyard | Entered Materials 306 | -10/Materials | Build established: Mutant 711 | -10/Materials | Core integrity fell below 50% 769 | -10/Materials | Lost 3 parts (2n1w) 960 | -10/Materials | Repaired Lgt. Cannon 1003 | -10/Materials | Discovered new exit (range 16) 1167 | -10/Materials | Discovered new exit (range 10) 1299 | -10/Materials | Discovered new exit (range 7) 1434 | -10/Materials | Discovered new exit (range 8) 2017 | -10/Materials | Identified exit to Mines 2083 | -10/Materials | Core integrity fell below 20% 2578 | -10/Materials | Entered Mines 2982 | -10/Mines | Learned location of Storage (-9) 3221 | -10/Mines | Discovered new exit (range 15) 3253 | -10/Mines | Destroyed by G-47 Trooper with Particle Gun Last Messages --------------- failed. Whatever you do stay away from that place, they've tightened security following our previous successful raids." World map updated: -9/Storage. WC-ISY(g): "We scattered so the Unaware couldn't effectively use their advantage in numbers, and I suggest you do the same." WC-ISY(g) slips back into the shadows. T-07 Excavator is excavating. U-05 Engineer lays Concrete. T-07 Excavator is excavating. Searching scrap... Found ECM Suite. Found Hover Unit. Found Terrain Scanner. Found 51 Matter. Acquired 41 matter. Acquired 10 matter. Grenade Launcher destroyed. EXIT=FOUND Map ----- +----------------------------------------------------+ | | | | | | | | | | | | | ?????????????????????????????????????????????????? | | ?????????????????????????????????????????????????? | | ?????????????????????????????????????????????????? | | ?????????????????????????????????????????????????? | | ?????????????????????????????????????????????????? | | ?????????????????????????????????????????????????? | | ???????????????????????????????##???##???????????? | | ?????????????????????????????## ##?# #??????????? | | ????????????????????????????? ### #??????????? | | ????????????????????????????? ## #??????????? | | ?????????????????????????????# ## #??????????? | | ?????????????????????????????# ## #??????????? | | ????????????????????????????## ## #??????????? | | ???????????????????????????## ?# #??????????? | | ?????????????##???????????## ??# #??????????? | | ????????????## ######???# #??# #??????????? | | ????????????# #??# #??# ####???????? | | ????????????# #??# ##?# #???????? | | ????????????# < ##?# ### ## #???????? | | ????????????# @### !! ## ## #???????? | | ????????????????# ### gg # # ## ##??????? | | ????????????????????## ####= ## ##?????? | | ?????????????????????####???# ### ##????? | | ????????????????????????????# ### ##???? | | ????????????????????????????### #?#### #???# | | ??????????????????????????????? #????## #??## | | ??????????????????????????????? ?????## ##??# | | ??????????????????????????????? #?????# ##?## | | ??????????????????????????????? ?????## ### | | ??????????????????????????????? #?????## | | ??????????????????????????????? #??????### | | ??????????????????????????????? #????????## # | | ????????????????????????????????###?????????# ## | | ????????????????????????????????????????????## #? | | ??????????????????????????????????????????#### ## | | ??????????????????????????????????????????# | | ?????????????????????????????????####?????# ## | | ???????????????????????????####### ####### #### | | ???????????????????????????# #??# | | ????????????????????????????## ######??# | | ????????????????????????????# ####????#### | | ???????????????????????????## ##??????## | | ???????????????????????????# ##?????## | | ???????????????????????????# #??#### | +----------------------------------------------------+ Best States ------------- Heat Dissipation 25 Energy Generation 10 Energy Capacity 250 Matter Stores 300 Matter Capacity 300 Sight Range 16 Terrain Scan Density 10 Evasion (%) 50 Recoil Reduction 2 Item Schematics ----------------- None Robot Schematics ------------------ None Fabricated ------------ Nothing Alien Tech Used ----------------- None Achievements -------------- None Challenges ------------ None Game ------ Seed GrapheneMasterThruster Manual? 0 Play Time 00:20:41 Cumulative 198.5 hours Start 2025.03.11 @ 12:33:35 End 2025.03.11 @ 12:55:28 Sessions 1 Manual Loads 0 Difficulty Rogue Special Mode None Game No. 245 Rogue 245 Adventurer 0 Explorer 0 Win Type - Total 2 Types 2/0/0/0/0/0/0/0/0 Lore% 28 Gallery% 62 Achievement% 51 Wizard Run 0 Options --------- Layout 1 ASCII 0 Keyboard 0 Movement Numpad Keybinds 0 Fullscreen 2 Font 24/Smallcaps Map View 50x35 Zoom Use 0% Tactical HUD 0 Map Filters NONE Filters NONE Steam 1 RUN: a667f192-0628-4776-9a94-58abec03b21c